fUST/lending_fUST_20241031
["ID","MTS","AMOUNT","RATE_DAILY","PERIOD"]
[341104670,1730379789570,-500.0,0.00021916,2]
[341104671,1730379789593,-500.0,0.00021916,2]
[341104672,1730379789616,-506.13240132,0.00021916,2]
[341104673,1730379789639,-500.0,0.00021916,2]
[341104674,1730379789662,-500.0,0.00021916,2]
[341104675,1730379789685,-500.0,0.00021916,2]
[341104676,1730379789708,-500.0,0.00021916,2]
[341104677,1730379789731,-238.5500225,0.00021916,2]
[341104678,1730379806307,158.936184,0.00013973,2]
[341104691,1730380059470,3000.0,0.00034529,45]
[341104692,1730380119253,1000.0,0.00034525,51]
[341104780,1730380232206,-250.0,0.00020137,2]
[341104781,1730380232217,-1551.85815039,0.00020215,2]
[341104839,1730380245304,-1769.62567051,0.00020215,2]
[341104840,1730380245314,-165.890076,0.00020274,2]
[341104841,1730380245325,-250.0,0.00020563,2]
[341104842,1730380245335,-250.0,0.00020619,2]
[341104843,1730380245345,-250.0,0.00020676,2]
[341104844,1730380245356,-158.558329,0.00020708,2]
[341104845,1730380245366,-250.0,0.00020732,2]
[341104846,1730380245375,-250.0,0.00020788,2]
[341104847,1730380245385,-300.0,0.00020844,2]
[341104848,1730380245395,-300.0,0.00020844,2]
[341104849,1730380245405,-250.0,0.00020845,2]
[341104850,1730380245415,-8102.44633605,0.00020845,2]
[341104851,1730380245425,-250.0,0.00020901,2]
[341104852,1730380245435,-250.0,0.00020958,2]
[341104853,1730380245444,-250.0,0.00021014,2]
[341104854,1730380245454,-250.0,0.0002107,2]
[341104855,1730380245465,-250.0,0.00021127,2]
[341104856,1730380245475,-8102.44633605,0.00021169,2]
[341104857,1730380245485,-250.0,0.00021183,2]
[341104858,1730380245494,-189.0,0.00021233,2]
[341104859,1730380245504,-250.0,0.0002124,2]
[341104860,1730380245514,-250.0,0.00021296,2]
[341104861,1730380245523,-250.0,0.00021352,2]
[341104862,1730380245533,-250.0,0.00021409,2]
[341104863,1730380245543,-250.0,0.00021465,2]
[341104864,1730380245553,-8021.70144812,0.00021478,2]
[341104870,1730380246540,-419.52770081,0.00021478,2]
[341104871,1730380276240,30000.0,0.00034525,30]
[341104872,1730380335222,283.930106,0.00013973,2]
[341104882,1730380659624,384.678808,0.000201,2]
[341104887,1730380799763,935.47685371,0.00034525,30]
[341104891,1730380900447,158.936184,0.00013973,2]
[341104893,1730380920011,1169.7234015,0.00019669,2]
[341104894,1730380929785,524.2272559,0.00019677,2]
[341104900,1730381131002,250.0,0.00019791,2]
[341104901,1730381131241,250.0,0.00019846,2]
[341104902,1730381131443,250.0,0.000199,2]
[341104903,1730381132028,250.0,0.00019954,2]
[341104904,1730381132160,250.0,0.00020009,2]
[341104905,1730381132389,250.0,0.00020063,2]
[341104906,1730381132640,250.0,0.00020117,2]
[341104919,1730381187764,256.452538,0.0001953,2]
[341104929,1730381242976,171.7236885,0.00019178,2]
[341104931,1730381269114,311.49884693,0.00034525,120]
[341104933,1730381281763,24900.0,0.0001941,2]
[341104938,1730381311586,1016.10671799,0.00034525,120]
[341104939,1730381324285,302.91370701,0.00034525,120]
[341104940,1730381326208,2063.40241909,0.00034525,120]
[341104941,1730381326471,8185.13760069,0.00034525,120]
[341104942,1730381326506,196676.57518253,0.00034525,120]
[341105009,1730381400181,278.397032,0.00013973,2]
[341105011,1730381417227,8102.44633605,0.00020052,2]
[341105037,1730381432443,-178.328353,0.00020168,2]
[341105040,1730381432455,-250.0,0.00020171,2]
[341105042,1730381432464,-256.452538,0.00020215,2]
[341105043,1730381432474,-250.0,0.00020226,2]
[341105046,1730381432484,-250.0,0.0002028,2]
[341105048,1730381432498,-250.0,0.00020334,2]
[341105050,1730381432509,-300.0,0.00020348,2]
[341105052,1730381432519,-300.0,0.00020348,2]
[341105054,1730381432530,-250.0,0.00020388,2]
[341105055,1730381432540,-8102.44633605,0.00020394,2]
[341105056,1730381432550,-250.0,0.00020443,2]
[341105057,1730381432559,-278.397032,0.00020447,2]
[341105058,1730381432568,-250.0,0.00020497,2]
[341105059,1730381432578,-250.0,0.00020551,2]
[341105060,1730381432587,-152.0,0.00020579,2]
[341105061,1730381432597,-250.0,0.00020606,2]
[341105063,1730381432607,-250.0,0.0002066,2]
[341105064,1730381432617,-250.0,0.00020714,2]
[341105065,1730381432626,-7681.77916495,0.0002074,2]
[341105073,1730381438459,-420.6671711,0.0002074,2]
[341105074,1730381438469,-250.0,0.00020768,2]
[341105075,1730381438478,-1875.3328289,0.00020799,2]
[341105080,1730381438639,-619.69894878,0.00020799,2]
[341105082,1730381438651,-4978.72224041,0.00020799,2]
[341105084,1730381438661,-250.0,0.00020823,2]
[341105086,1730381438670,-1216.72180246,0.00020866,2]
[341105087,1730381438680,-256.452538,0.000209,2]
[341105089,1730381438690,-500.0,0.00021081,2]
[341105091,1730381438699,-500.0,0.00021081,2]
[341105092,1730381438708,-279.07939101,0.00021081,2]
[341105093,1730381438718,-242.49576804,0.00021081,2]
[341105094,1730381438727,-500.0,0.00021081,2]
[341105095,1730381438736,-323.15678998,0.00021081,2]
[341105096,1730381438747,-578.24507084,0.00021081,2]
[341105097,1730381438757,-500.0,0.00021081,2]
[341105098,1730381438769,-500.0,0.00021081,2]
[341105099,1730381438778,-500.0,0.00021081,2]
[341105100,1730381438787,-500.0,0.00021081,2]
[341105101,1730381438796,-419.84982691,0.00021081,2]
[341105102,1730381438806,-7953.74948635,0.00021082,2]
[341105103,1730381438818,-148.6968497,0.00021082,2]
[341105104,1730381438828,-1223.6241794,0.00021282,2]
[341105105,1730381438839,-5855.41655109,0.00021282,2]
[341105161,1730381446492,-1023.40560556,0.00021282,2]
[341105162,1730381446504,-153.0,0.00021452,2]
[341105163,1730381446514,-153.0,0.00021452,2]
[341105164,1730381446524,-34.07736489,0.000216,2]
[341105172,1730381703174,5538.0,0.00020112,2]
[341105173,1730381727311,5000.0,0.00020117,2]
[341105174,1730381762613,13169.65700399,0.00034519,30]
[341105178,1730381835725,1129.57924,0.00019632,2]
[341105179,1730381836709,172.413717,0.00019779,2]
[341105180,1730381836937,172.413717,0.00019908,2]
[341105181,1730381837223,172.413717,0.00020036,2]
[341105182,1730381856162,647.8107613,0.00019523,2]
[341105183,1730381910357,2308.176932,0.00019523,2]
[341105190,1730381978284,163.43474,0.00013973,2]
[341105209,1730382007255,742.43613964,0.00020065,2]
[341105213,1730382011560,256.6373003,0.00019457,2]
[341105220,1730382295917,1677.120349,0.00019453,2]
[341105221,1730382315161,165.890076,0.00019178,2]
[341105223,1730382350195,172.413717,0.00019599,2]
[341105224,1730382350422,172.413717,0.00019803,2]
[341105225,1730382350828,172.413717,0.00020008,2]
[341105229,1730382356236,24900.0,0.00019432,2]
[341105235,1730382482801,3000.0,0.00019758,2]
[341105323,1730382591853,283.735971,0.00013973,2]
[341105324,1730382619329,564.78962,0.00019804,2]
[341105378,1730382632650,-1677.120349,0.00020138,2]
[341105379,1730382632660,-172.413717,0.00020212,2]
[341105380,1730382632670,-183.480043,0.00020345,2]
[341105381,1730382632679,-172.413717,0.00020416,2]
[341105382,1730382632689,-283.735971,0.00020447,2]
[341105383,1730382632698,-172.413717,0.0002062,2]
[341105384,1730382632709,-6870.32051518,0.00020682,2]
[341105385,1730382632719,-300.0,0.00020708,2]
[341105386,1730382632729,-300.0,0.00020708,2]
[341105387,1730382632739,-4556.5472806,0.0002071,2]
[341105388,1730382632749,-194.2327896,0.00020744,2]
[341105389,1730382632759,-1677.120349,0.00020823,2]
[341105390,1730382632768,-6870.32051518,0.00020949,2]
[341105391,1730382632777,-153.0,0.00021201,2]
[341105392,1730382632788,-153.0,0.00021201,2]
[341105393,1730382632797,-240.9081501,0.00021201,2]
[341105394,1730382632806,-153.0,0.00021201,2]
[341105395,1730382632817,-6870.32051519,0.00021274,2]
[341105396,1730382632826,-6539.53476582,0.00021535,2]
[341105397,1730382632836,-302.8704018,0.00021635,2]
[341105398,1730382632846,-329.17705162,0.00021915,2]
[341105399,1730382632855,-324.42775854,0.00021915,2]
[341105400,1730382632864,-911.44225922,0.00021916,2]
[341105401,1730382632874,-12159.59294875,0.00021916,2]
[341105402,1730382632883,-151.0,0.00021917,2]
[341105403,1730382632896,-151.0,0.00021917,2]
[341105404,1730382632911,-151.0,0.00021917,2]
[341105405,1730382632922,-151.0,0.00021917,2]
[341105406,1730382632931,-187.95488,0.00021917,2]
[341105407,1730382632943,-151.0,0.00021917,2]
[341105408,1730382632954,-5000.0,0.00021917,2]
[341105409,1730382632963,-5000.0,0.00021917,2]
[341105410,1730382632973,-5000.0,0.00021917,2]
[341105411,1730382632982,-5000.0,0.00021917,2]
[341105412,1730382632991,-1269.9766636,0.00021918,7]
[341105413,1730382633001,-166.666666,0.00021918,2]
[341105414,1730382633010,-151.0,0.00022009,7]
[341105415,1730382633019,-151.0,0.00022159,7]
[341105416,1730382633133,-153.0,0.00022159,2]
[341105417,1730382633143,-151.0,0.00022166,7]
[341105418,1730382633153,-151.0,0.00022166,7]
[341105419,1730382633164,-151.0,0.00022166,7]
[341105420,1730382633176,-151.0,0.00022166,7]
[341105421,1730382633185,-151.0,0.00022166,7]
[341105422,1730382633195,-151.0,0.00022166,7]
[341105423,1730382633206,-597.53970318,0.00022167,2]
[341105424,1730382633216,-166.666666,0.00022431,2]
[341105425,1730382633225,-168.462,0.00022466,2]
[341105426,1730382633234,-420.0,0.00022532,2]
[341105427,1730382633244,-3389.25878308,0.00022555,2]
[341105428,1730382633254,-1000.0,0.00022556,2]
[341105429,1730382633264,-248.05,0.00022644,3]
[341105430,1730382633273,-744.18,0.00022644,3]
[341105431,1730382633282,-158.19975871,0.00022652,2]
[341105432,1730382633291,-223.44069273,0.00022652,2]
[341105433,1730382633304,-252.04237499,0.00022652,2]
[341105434,1730382633313,-500.0,0.00022652,2]
[341105435,1730382633323,-500.0,0.00022652,2]
[341105436,1730382633332,-500.0,0.00022652,2]
[341105437,1730382633342,-503.10371896,0.00022652,2]
[341105438,1730382633352,-500.0,0.00022652,2]
[341105439,1730382633361,-500.0,0.00022652,2]
[341105440,1730382633370,-151.0,0.00022653,7]
[341105441,1730382633380,-151.0,0.00022653,7]
[341105442,1730382633395,-151.0,0.00022653,5]
[341105443,1730382633405,-155.231127,0.00022653,7]
[341105444,1730382633414,-153.503773,0.00022654,7]
[341105445,1730382633423,-151.0,0.00022654,7]
[341105446,1730382633433,-151.0,0.00022654,7]
[341105447,1730382633443,-151.0,0.00022654,7]
[341105448,1730382633453,-157.692846,0.00022654,7]
[341105449,1730382633462,-151.0,0.00022654,7]
[341105450,1730382633472,-151.0,0.00022654,7]
[341105451,1730382633482,-264.490395,0.00022654,7]
[341105452,1730382633491,-151.0,0.00022654,7]
[341105453,1730382633501,-151.0,0.00022654,7]
[341105454,1730382633511,-151.0,0.00022654,7]
[341105455,1730382633521,-151.0,0.00022654,7]
[341105456,1730382633530,-151.0,0.00022654,7]
[341105457,1730382633540,-151.0,0.00022654,7]
[341105458,1730382633550,-311.954623,0.00022654,7]
[341105459,1730382633559,-311.954623,0.00022654,7]
[341105460,1730382633569,-151.0,0.00022654,7]
[341105461,1730382633581,-151.0,0.00022655,7]
[341105462,1730382633591,-151.0,0.00022655,7]
[341105463,1730382633601,-151.0,0.00022655,7]
[341105464,1730382633610,-151.0,0.00022655,7]
[341105465,1730382633620,-151.0,0.00022655,7]
[341105466,1730382633629,-192.915443,0.00022655,7]
[341105467,1730382633640,-151.0,0.00022655,7]
[341105468,1730382633650,-151.0,0.00022655,7]
[341105469,1730382633660,-176.588311,0.00022655,7]
[341105470,1730382633669,-151.0,0.00022655,7]
[341105471,1730382633679,-311.954623,0.00022655,7]
[341105472,1730382633688,-311.954623,0.00022655,7]
[341105473,1730382633698,-5000.0,0.00022655,2]
[341105474,1730382633707,-5000.0,0.00022655,2]
[341105475,1730382633717,-5000.0,0.00022655,2]
[341105476,1730382633728,-5000.0,0.00022655,2]
[341105477,1730382633738,-5000.0,0.00022655,2]
[341105478,1730382633748,-5000.0,0.00022655,2]
[341105479,1730382633760,-5000.0,0.00022655,2]
[341105480,1730382633771,-151.0,0.00022655,7]
[341105481,1730382633781,-5000.0,0.00022655,2]
[341105482,1730382633790,-151.0,0.00022655,7]
[341105483,1730382633800,-151.0,0.00022656,7]
[341105484,1730382633810,-151.0,0.00022656,7]
[341105485,1730382633819,-151.0,0.00022656,7]
[341105486,1730382633828,-151.0,0.00022656,7]
[341105487,1730382633838,-151.0,0.00022656,7]
[341105488,1730382633848,-151.0,0.00022656,7]
[341105489,1730382633857,-151.0,0.00022656,7]
[341105490,1730382633867,-151.0,0.00022656,7]
[341105491,1730382633877,-311.954623,0.00022656,7]
[341105492,1730382633886,-311.954623,0.00022656,7]
[341105493,1730382633900,-500.0,0.00022673,2]
[341105494,1730382633909,-500.0,0.00022673,2]
[341105495,1730382633919,-500.0,0.00022673,2]
[341105496,1730382633929,-500.0,0.00022673,2]
[341105497,1730382633939,-527.6537175,0.00022673,2]
[341105498,1730382633949,-500.0,0.00022673,2]
[341105499,1730382633959,-500.0,0.00022673,2]
[341105500,1730382633968,-509.31595472,0.00022673,2]
[341105501,1730382633978,-500.0,0.00022673,2]
[341105502,1730382633987,-500.0,0.00022673,2]
[341105503,1730382633997,-500.0,0.00022673,2]
[341105504,1730382634007,-500.0,0.00022673,2]
[341105505,1730382634016,-500.0,0.00022673,2]
[341105506,1730382634026,-500.0,0.00022673,2]
[341105507,1730382634037,-500.0,0.00022673,2]
[341105508,1730382634046,-500.0,0.00022673,2]
[341105509,1730382634056,-500.0,0.00022673,2]
[341105510,1730382634065,-420.0,0.00022779,2]
[341105511,1730382634075,-166.666666,0.00022944,2]
[341105512,1730382634084,-5000.0,0.00022981,2]
[341105513,1730382634094,-151.0,0.00022982,7]
[341105514,1730382634104,-151.0,0.00022982,7]
[341105515,1730382634113,-270.787,0.00022982,2]
[341105516,1730382634122,-528.0,0.00022982,2]
[341105517,1730382634131,-2395.0,0.00022982,2]
[341105518,1730382634143,-1143.0,0.00022982,2]
[341105519,1730382634154,-151.0,0.00023016,7]
[341105520,1730382634163,-151.0,0.00023016,7]
[341105521,1730382634173,-151.0,0.00023016,7]
[341105522,1730382634182,-151.0,0.00023016,7]
[341105523,1730382634193,-151.0,0.00023016,7]
[341105524,1730382634206,-151.0,0.00023078,7]
[341105525,1730382634215,-311.954623,0.00023078,7]
[341105526,1730382634225,-311.954623,0.00023078,7]
[341105527,1730382634234,-3389.25878304,0.00023079,2]
[341105528,1730382634245,-471.62698516,0.00023276,2]
[341105529,1730382634254,-153.0,0.00023369,2]
[341105530,1730382634263,-150.112233,0.000234,10]
[341105531,1730382634273,-166.666666,0.00023456,2]
[341105532,1730382634285,-3389.25878304,0.00023603,2]
[341105533,1730382634294,-150.112233,0.000237,5]
[341105534,1730382634303,-246.1106,0.00023754,2]
[341105535,1730382634313,-150.112233,0.000238,8]
[341105536,1730382634322,-6539.53476577,0.00023801,2]
[341105537,1730382634332,-150.112233,0.000239,6]
[341105538,1730382634341,-166.666666,0.00023969,2]
[341105539,1730382634351,-500.0,0.00023973,2]
[341105540,1730382634360,-500.0,0.00023973,2]
[341105541,1730382634372,-500.0,0.00023973,2]
[341105542,1730382634382,-500.0,0.00023973,2]
[341105543,1730382634394,-500.0,0.00023973,2]
[341105544,1730382634403,-500.0,0.00023973,2]
[341105545,1730382634413,-151.0,0.00023973,7]
[341105546,1730382634422,-151.0,0.00023973,7]
[341105547,1730382634432,-151.0,0.00023973,7]
[341105548,1730382634442,-151.0,0.00023973,7]
[341105549,1730382634452,-151.0,0.00023973,7]
[341105550,1730382634461,-151.0,0.00023973,7]
[341105551,1730382634471,-151.0,0.00023973,7]
[341105552,1730382634481,-32753.27184053,0.00024,2]
[341105563,1730382638766,-457.62340099,0.00022652,2]
[341105564,1730382638776,-70.72084286,0.00022652,2]
[341105565,1730382638788,-429.27915714,0.00022652,2]
[341105566,1730382638797,-500.0,0.00022652,2]
[341105567,1730382638806,-500.0,0.00022652,2]
[341105568,1730382638815,-151.0,0.00022654,3]
[341105569,1730382638826,-151.0,0.00022655,3]
[341105570,1730382638835,-152.358092,0.00022656,3]
[341105571,1730382638845,-500.0,0.00022673,2]
[341105572,1730382638855,-204.71725594,0.00022673,2]
[341105573,1730382638864,-153.140399,0.00023078,7]
[341105574,1730382638873,-5000.0,0.00023972,2]
[341105575,1730382638884,-5000.0,0.00023999,2]
[341105576,1730382638896,-5000.0,0.00023999,2]
[341105577,1730382638905,-3737.32077841,0.00023999,2]
[341105586,1730382640586,-151.0,0.00022654,7]
[341105587,1730382640595,-154.078477,0.00022655,7]
[341105588,1730382640605,-183.686,0.00022982,2]
[341105589,1730382640614,-508.06653135,0.00023999,2]
[341105590,1730382640626,-754.61269024,0.00023999,2]
[341105591,1730382640636,-2824.14390693,0.00023999,2]
[341105607,1730382643590,-8198.6474919,0.00022469,2]
[341105608,1730382643600,-9335.44904182,0.00023999,2]
[341105609,1730382643609,-4778.77171279,0.00024,2]
[341105610,1730382643619,-655.43397569,0.00024,2]
[341105611,1730382643628,-7480.73334132,0.00024,7]
[341105624,1730382646546,-2519.26665868,0.00024,7]
[341105625,1730382646555,-8205.73334132,0.00024,2]
[341105627,1730382650930,194.2327896,0.00020038,2]
[341105629,1730382787448,916.90280252,0.00024,120]
[341105630,1730382787475,10987.37181452,0.00024,120]
[341105631,1730383107086,173.2686293,0.00013973,2]
[341105634,1730383366152,368.758,0.000189,2]
[341105654,1730383660917,205.0503766,0.00019328,2]
[341105655,1730383691893,300.751,0.00020117,2]
[341105656,1730383693848,255.362373,0.00013973,2]
[341105727,1730383782832,534.24594071,0.0002,2]
[341105780,1730383832715,-255.362373,0.00020447,2]
[341105782,1730383832726,-94.96684042,0.00020488,2]
[341105784,1730383832740,-430.10000005,0.00020488,2]
[341105785,1730383832799,-355.5,0.00020488,2]
[341105786,1730383834059,-193.40315953,0.00020488,2]
[341105787,1730383834070,-3000.0,0.00020551,2]
[341105788,1730383834080,-1459.206829,0.00020552,2]
[341105789,1730383834090,-282.39481,0.00020579,2]
[341105790,1730383834100,-178.328353,0.0002128,2]
[341105791,1730383834110,-368.819,0.0002142,30]
[341105792,1730383834121,-190.97743,0.00021918,2]
[341105793,1730383834131,-300.0,0.00021999,2]
[341105794,1730383834147,-156.81606452,0.00021999,2]
[341105795,1730383834157,-300.0,0.00021999,2]
[341105796,1730383834168,-28284.72,0.00022,2]
[341105797,1730383834178,-341.77768612,0.00022009,2]
[341105798,1730383834189,-500.0,0.00022009,2]
[341105799,1730383834199,-4904.65107438,0.0002201,2]
[341105800,1730383834209,-607.62817282,0.0002201,2]
[341105801,1730383834220,-368.73,0.0002211,3]
[341105802,1730383834229,-1355.70351324,0.00022473,2]
[341105803,1730383834239,-496.1,0.00022546,3]
[341105804,1730383834248,-302.9343744,0.00022547,2]
[341105805,1730383834258,-176.42966249,0.00022555,2]
[341105806,1730383834268,-156.40848491,0.00022555,2]
[341105807,1730383834278,-500.0,0.00022555,2]
[341105808,1730383834288,-500.0,0.00022555,2]
[341105809,1730383834298,-500.0,0.00022555,2]
[341105810,1730383834308,-202.17260327,0.00022555,2]
[341105811,1730383834318,-500.0,0.00022555,2]
[341105812,1730383834327,-500.0,0.00022555,2]
[341105813,1730383834337,-270.33638069,0.00022555,2]
[341105814,1730383834347,-500.0,0.00022555,2]
[341105815,1730383834358,-51321.48222865,0.00022556,2]
[341105816,1730383834371,-1649.7797688,0.00022556,2]
[341105817,1730383834383,-3003.8148691,0.00022556,2]
[341105841,1730383839180,-23911.04736035,0.00022556,2]
[341105842,1730383839192,-70234.57738466,0.00022556,2]
[341105843,1730383839202,-500.0,0.00022573,2]
[341105844,1730383839212,-500.0,0.00022573,2]
[341105845,1730383839221,-500.39411077,0.00022573,2]
[341105846,1730383839231,-599.40761041,0.00022573,2]
[341105847,1730383839241,-500.0,0.00022573,2]
[341105848,1730383839250,-500.0,0.00022573,2]
[341105849,1730383839260,-500.58048344,0.00022573,2]
[341105850,1730383839270,-500.0,0.00022573,2]
[341105851,1730383839279,-237.13447851,0.00022573,2]
[341105852,1730383839291,-262.86552149,0.00022573,2]
[341105853,1730383839300,-500.0,0.00022573,2]
[341105855,1730383839310,-134.55036931,0.00022573,2]
[341105856,1730383839332,-365.44963069,0.00022573,2]
[341105857,1730383839341,-303.7442975,0.00022573,2]
[341105878,1730383840820,-196.2557025,0.00022573,2]
[341105879,1730383840829,-305.14206287,0.00022573,2]
[341105880,1730383840839,-500.0,0.00022573,2]
[341105881,1730383840850,-168.46368017,0.00022636,2]
[341105882,1730383840864,-252.95855446,0.000228,30]
[341105883,1730383840901,-115.79344554,0.000228,30]
[341105884,1730383840910,-368.782,0.0002291,2]
[341105885,1730383840920,-1355.70351321,0.00023017,2]
[341105887,1730383840929,-156.203,0.00023222,2]
[341105889,1730383840942,-528.988,0.00023222,2]
[341105890,1730383840952,-1143.0,0.00023222,2]
[341105891,1730383840961,-2395.0,0.00023222,2]
[341105892,1730383840971,-248.895447,0.00023286,2]
[341105893,1730383840990,-302.9343744,0.00023368,2]
[341105894,1730383841002,-302.9343744,0.00023368,2]
[341105895,1730383841015,-302.9343744,0.00023368,2]
[341105896,1730383841025,-455.1256777,0.00023369,2]
[341105897,1730383841036,-368.801,0.0002349,7]
[341105898,1730383841046,-1355.70351321,0.00023562,2]
[341105899,1730383841056,-412.4735354,0.00023726,2]
[341105900,1730383841066,-420.0,0.00023906,2]
[341105901,1730383841077,-154.4134228,0.00023918,2]
[341105902,1730383841087,-2950.58721763,0.00023999,2]
[341105903,1730383841097,-11794.26665868,0.00024,2]
[341105904,1730383841107,-600.50063234,0.00024,7]
[341105905,1730383841118,-399.99999901,0.00024,7]
[341105906,1730383841128,-150.112233,0.00024,8]
[341105907,1730383841142,-184.0,0.00024,2]
[341105908,1730383841152,-1332.72607655,0.00024,2]
[341105909,1730383841162,-150.112233,0.00024,5]
[341105910,1730383841172,-383.171376,0.00024,7]
[341105911,1730383841182,-151.0,0.00024,7]
[341105912,1730383841192,-383.171376,0.00024,7]
[341105913,1730383841201,-151.0,0.00024,7]
[341105914,1730383841211,-187.33089,0.00024,7]
[341105915,1730383841221,-187.33089,0.00024,7]
[341105916,1730383841232,-151.0,0.00024,7]
[341105917,1730383841241,-151.0,0.00024,7]
[341105918,1730383841251,-155.62302,0.00024,7]
[341105919,1730383841261,-151.0,0.00024,7]
[341105920,1730383841271,-400.0,0.00024,2]
[341105921,1730383841281,-151.0,0.00024,7]
[341105922,1730383841291,-151.0,0.00024,7]
[341105923,1730383841301,-151.0,0.00024,7]
[341105924,1730383841312,-151.0,0.00024077,7]
[341105925,1730383841322,-151.0,0.00024077,7]
[341105926,1730383841332,-151.0,0.00024077,7]
[341105927,1730383841342,-302.9343744,0.00024077,2]
[341105928,1730383841353,-302.9343744,0.00024077,2]
[341105929,1730383841362,-1355.70351321,0.00024106,2]
[341105930,1730383841372,-151.0,0.00024106,7]
[341105931,1730383841382,-151.0,0.00024106,7]
[341105932,1730383841395,-152.036354,0.00024106,7]
[341105933,1730383841404,-151.0,0.00024106,7]
[341105934,1730383841414,-152.036354,0.00024106,7]
[341105935,1730383841424,-368.816,0.0002418,6]
[341105936,1730383841434,-420.0,0.00024199,2]
[341105937,1730383841443,-4904.65107432,0.00024209,2]
[341105938,1730383841453,-150.112233,0.000243,8]
[341105939,1730383841463,-150.112233,0.000243,8]
[341105940,1730383841473,-150.112233,0.000243,6]
[341105941,1730383841482,-150.112233,0.000243,10]
[341105942,1730383841492,-465.33134926,0.00024439,2]
[341105943,1730383841502,-190.97743,0.00024482,2]
[341105944,1730383841511,-150.112233,0.000245,9]
[341105945,1730383841522,-150.112233,0.000245,5]
[341105946,1730383841531,-150.112233,0.000245,6]
[341105947,1730383841541,-150.112233,0.000245,6]
[341105948,1730383841550,-151.0,0.0002452,7]
[341105949,1730383841560,-1000.0,0.00024558,2]
[341105950,1730383841569,-210.9749991,0.00024593,2]
[341105951,1730383841579,-1355.70351321,0.0002465,2]
[341105952,1730383841588,-2000.0,0.00024658,60]
[341105953,1730383841598,-200.0,0.00024658,15]
[341105954,1730383841612,-660.0,0.00024658,2]
[341105955,1730383841622,-197.4978144,0.00024658,4]
[341105956,1730383841632,-380.0,0.00024658,2]
[341105957,1730383841646,-151.410353,0.00024658,7]
[341105958,1730383841655,-151.0,0.00024658,7]
[341105959,1730383841665,-187.172773,0.00024658,7]
[341105960,1730383841675,-187.172773,0.00024658,7]
[341105961,1730383841685,-198.561047,0.00024658,7]
[341105962,1730383841695,-151.0,0.00024658,7]
[341105963,1730383841704,-151.0,0.00024658,7]
[341105964,1730383841714,-151.0,0.00024658,7]
[341105965,1730383841723,-151.0,0.00024658,7]
[341105966,1730383841733,-151.0,0.00024658,7]
[341105967,1730383841743,-151.0,0.00024658,7]
[341105968,1730383841753,-151.0,0.00024658,7]
[341105969,1730383841762,-151.0,0.00024658,7]
[341105970,1730383841772,-383.171376,0.00024658,7]
[341105971,1730383841781,-383.171376,0.00024658,7]
[341105972,1730383841791,-151.0,0.00024658,7]
[341105973,1730383841801,-151.0,0.00024658,7]
[341105974,1730383841811,-383.171376,0.00024658,7]
[341105975,1730383841820,-383.171376,0.00024658,7]
[341105976,1730383841830,-187.33089,0.00024658,7]
[341105977,1730383841839,-187.33089,0.00024658,7]
[341105978,1730383841850,-187.33089,0.00024658,7]
[341105979,1730383841859,-187.33089,0.00024658,7]
[341105980,1730383841873,-151.0,0.00024658,7]
[341105981,1730383841882,-151.0,0.00024658,7]
[341105982,1730383841895,-151.0,0.00024658,7]